[Event "44th Chess Olympiad Women 2022"]
[Site "Chennai"]
[Date "2022.07.30"]
[Round "2.27"]
[White "Tsolakidou, Stavroula"]
[Black "Milovic, Aleksandra"]
[Result "1-0"]
[ECO "B01"]
[WhiteElo "2362"]
[BlackElo "2129"]
[Annotator "TA"]
[PlyCount "93"]
[EventDate "2022.07.29"]
[EventType "team-tourn"]
[EventCountry "IND"]
[SourceTitle "playchess.com"]
[Source "ChessBase"]
[SourceQuality "1"]
[WhiteTeam "Greece"]
[BlackTeam "Montenegro"]
[WhiteTeamCountry "GRE"]
[BlackTeamCountry "MNE"]
[TimeControl "40/5400+30:1800+30"]

{[%evp 10,93,66,70,70,58,64,56,58,49,49,46,53,55,50,48,50,33,69,75,69,75,75,70,77,63,71,61,95,70,102,37,83,70,87,66,62,51,55,41,47,18,74,15,14,25,16,10,25,29,34,-56,0,0,8,0,382,390,403,389,398,358,313,100,161,0,302,192,200,100,110,100,117,109,226,225,233,232,225,225,225,196,482,469,435,445]} 1. e4 {[%emt 0:00:03]} d5 {[%emt 0:01:02]} 2. exd5 {[%emt 0:00:10]} Qxd5 {[%emt 0:00:04]} 3. Nc3 {[%emt 0:00:10]} Qd8 {[%emt 0:00:05]} 4. d4 {[%emt 0:00:12]} Nf6 {[%emt 0:00:06]} 5. Nf3 {[%emt 0:00:10]} Bg4 {[%emt 0:00:07]} 6. h3 {[%emt 0:00:13]} Bxf3 {[%emt 0:00:05] B01: Scandinavian Defence.} 7. Qxf3 {[%emt 0:00:04]} c6 {[%emt 0:00:02]} 8. Be3 {[%emt 0:00:24]} e6 {[%emt 0:00:10] White is slightly better.} 9. O-O-O {[%emt 0:00:26]} Bb4 {[%emt 0:06:10] The main line 9...Bb4 scores better than 9...Nbd7.} 10. Ne4 {[%emt 0:02:49]} Nxe4 {[%emt 0:00:24]} 11. Qxe4 {[%emt 0:00:05][%cal Od4d5] Hoping for d5!} Qd5 {[%emt 0:00:37]} 12. Qxd5 {[%emt 0:00:12]} cxd5 {[%emt 0:00:05]} 13. c4 {[%emt 0:01:41]} O-O {[%emt 0:04:13]} 14. c5 $36 {[%emt 0:05:38][%mdl 2048] [#] White is in control.} a6 $146 {[%emt 0:03:23]} ({Predecessor:} 14... Ba5 15. a3 Rc8 16. Kb1 a6 17. g4 Nd7 18. Rc1 Bd8 19. Be2 b5 20. g5 Nb8 {½-½ (33) Georgescu,L (2130)-Milovic,A (2191) Heraklion 2017}) 15. a3 {[%emt 0:03:18]} Ba5 {[%emt 0:01:57]} 16. b4 {[%emt 0:05:59]} Bd8 {[%emt 0:07:34]} 17. g4 {[%emt 0:11:52]} Nc6 {[%emt 0:03:24]} 18. Be2 {[%emt 0:05:11]} Be7 {[%emt 0:07:29]} 19. Kc2 {[%emt 0:01:18]} Rfc8 {[%emt 0:07:45]} 20. Rb1 {[%emt 0:14:26]} (20. h4 $16) 20... Bd8 {[%emt 0:11:32]} (20... Bf6 $14 {should be considered.}) 21. f4 {[%emt 0:10:58]} b6 {[%emt 0:02:54]} 22. Kb3 {[%emt 0:06:30]} b5 {[%emt 0:16:57]} 23. a4 {[%emt 0:05:38]} bxa4+ {[%emt 0:03:20]} 24. Kxa4 {[%emt 0:02:06]} Rcb8 {[%emt 0:00:05]} 25. g5 {[%emt 0:06:42][%cal Of4f5]} Na7 {[%emt 0:06:46]} (25... Ra7 $11 {keeps the balance.}) 26. Kb3 {[%emt 0:06:32]} ({Better is} 26. Rb2 $16) 26... a5 $1 $11 {[%emt 0:01:51]} 27. b5 {[%emt 0:04:07]} Nxb5 {[%emt 0:01:23]} 28. Bxb5 {[%emt 0:00:56]} Rxb5+ {[%emt 0:00:06]} 29. Ka4 $1 {[%emt 0:00:05]} Rbb8 {[%emt 0:04:55]} 30. c6 {[%emt 0:00:50]} (30. f5 $14) 30... Rc8 {[%emt 0:01:03]} (30... Bc7 $15) 31. Rhc1 {[%emt 0:00:22][%cal Of4f5]} Kf8 {[%emt 0:02:09] ...Ra6 is the strong threat.} (31... Ra6 $2 32. c7 Rxc7 33. Rb8 $18) 32. Rb7 {[%emt 0:00:55][%cal Of4f5]} Ke8 $2 {[%emt 0:01:07][%mdl 8192]} (32... Bc7 $11 {and Black stays safe.}) 33. f5 $1 $18 {[%emt 0:00:51]} Bc7 {[%emt 0:01:20]} 34. fxe6 {[%emt 0:02:06]} fxe6 {[%emt 0:00:05]} 35. Bd2 {[%emt 0:00:19]} e5 {[%emt 0:04:12]} 36. Rc5 $2 {[%emt 0:02:09]} (36. Re1 $18 {has better winning chances.}) 36... Bd6 {[%emt 0:02:57]} (36... exd4 $16 37. Rxd5 Rd8) 37. Rc1 {[%emt 0:02:26]} ({Not} 37. Rxa5 Rxa5+ 38. Bxa5 Rxc6 $11) (37. Rxd5 $6 Rxc6 38. dxe5 Rc7 39. Rxc7 Bxc7 $11) (37. Rc2 $142 $1) 37... Bc7 $1 {[%emt 0:00:40]} 38. dxe5 {[%emt 0:00:35]} Ke7 {[%emt 0:00:03]} 39. e6 {[%emt 0:00:49]} ({White should try} 39. Bc3 $18) 39... Kxe6 $16 {[%emt 0:00:13]} 40. Re1+ {[%emt 0:00:04]} Kf5 {[%emt 0:00:59] [#]} 41. Rb5 $1 {[%emt 0:30:36][%csl LRa5,LRd5] White is much more active.} Bg3 {[%emt 0:12:46]} (41... Rd8 $16 {was called for.}) 42. Rxd5+ $18 {[%emt 0:00:00]} Kg6 {[%emt 0:00:09] [#]} 43. Re6+ {[%emt 0:00:00]} Kf7 {[%emt 0:00:56]} 44. Re3 {[%emt 0:00:00]} Bh2 {[%emt 0:03:09]} 45. Re2 {[%emt 0:00:00]} ({Worse is} 45. Rxa5 Rxa5+ 46. Kxa5 Rxc6 $11) 45... Bg1 {[%emt 0:02:07]} (45... Bb8 46. Rd7+ (46. Rxa5 Rxa5+ 47. Kxa5 Rxc6 $11) 46... Kg6) 46. Rd7+ {[%emt 0:00:00]} Kg6 {[%emt 0:01:52]} 47. c7 {[%emt 0:00:00] Weighted Error Value: White=0.26 (precise) /Black=0.39} 1-0

[Event "44th Chess Olympiad Women 2022"]
[Site "Chennai"]
[Date "2022.07.30"]
[Round "2.27"]
[White "Pavlidou, Ekaterini"]
[Black "Bacic, Kristina"]
[Result "1-0"]
[ECO "D10"]
[WhiteElo "2138"]
[BlackElo "1866"]
[Annotator "TA"]
[PlyCount "85"]
[EventDate "2022.07.29"]
[EventType "team-tourn"]
[EventCountry "IND"]
[SourceTitle "playchess.com"]
[Source "ChessBase"]
[SourceQuality "1"]
[WhiteTeam "Greece"]
[BlackTeam "Montenegro"]
[WhiteTeamCountry "GRE"]
[BlackTeamCountry "MNE"]
[TimeControl "40/5400+30:1800+30"]

{[%evp 13,85,39,30,10,19,16,25,0,7,-19,-18,-43,-37,-39,-27,-29,-19,-25,-18,-35,-29,-23,-12,-49,-31,-32,-46,-38,-26,-32,-23,-22,-11,-25,0,0,0,0,0,-21,0,0,15,-16,0,0,0,0,152,141,145,136,196,210,206,208,197,111,342,342,345,345,299,256,912,702,943,925,900,889,879,864,841,833]} 1. d4 {[%emt 0:00:25]} d5 {[%emt 0:00:23]} 2. c4 {[%emt 0:00:14]} c6 {[%emt 0:00:14]} 3. cxd5 {[%emt 0:00:29]} cxd5 {[%emt 0:00:07]} 4. Bf4 {[%emt 0:00:14]} Nc6 {[%emt 0:00:31]} 5. e3 {[%emt 0:01:06]} e6 {[%emt 0:00:45]} 6. Nc3 {[%emt 0:01:36]} a6 {[%emt 0:01:05]} 7. Bd3 {[%emt 0:01:13]} Nf6 {[%emt 0:01:27]} 8. h3 {[%emt 0:00:52] 8.Nf3 is the modern continuation. D10: Slav Defence: 3 cxd5 (without early Nf3) and 3 Nc3.} Bd6 {[%emt 0:01:53]} 9. Nge2 {[%emt 0:06:05]} O-O {[%emt 0:02:05]} 10. Bg5 {[%emt 0:02:10] [#] White has an edge.} h6 $146 {[%emt 0:02:50]} ({Predecessor:} 10... b5 11. O-O Be7 12. Rc1 Bb7 13. Bb1 Ne8 14. Bxe7 Qxe7 15. e4 dxe4 16. Nxe4 Nd6 {1-0 (26) Brhel,J (2070)-Popovic,M (1874) Banska Stiavnica 2018}) 11. Bxf6 {[%emt 0:03:05]} Qxf6 {[%emt 0:00:22]} 12. f4 {[%emt 0:00:09]} Qh4+ {[%emt 0:05:07]} 13. g3 {[%emt 0:00:16]} Qh5 {[%emt 0:00:43]} 14. Ng1 {[%emt 0:10:39]} Qxd1+ {[%emt 0:02:29]} 15. Rxd1 {[%emt 0:00:32]} b5 {[%emt 0:01:27]} 16. Rc1 {[%emt 0:10:40]} Bd7 {[%emt 0:04:30]} 17. Nf3 {[%emt 0:01:27]} Na5 {[%emt 0:12:59]} 18. b3 {[%emt 0:06:34] Inhibits Nc4.} Rfc8 {[%emt 0:04:05]} 19. Ne2 {[%emt 0:13:01]} Rxc1+ {[%emt 0:05:52]} 20. Nxc1 {[%emt 0:00:06]} Rc8 {[%emt 0:00:46]} 21. Ne2 {[%emt 0:00:46]} Nc6 {[%emt 0:02:16]} 22. Kf2 {[%emt 0:03:59]} Ba3 {[%emt 0:06:03]} 23. g4 {[%emt 0:05:30]} Nb4 {[%emt 0:03:22]} 24. Bb1 {[%emt 0:00:13]} a5 {[%emt 0:03:40]} 25. Ne5 {[%emt 0:01:15]} Be8 {[%emt 0:00:12]} 26. h4 {[%emt 0:02:46]} a4 {[%emt 0:02:03]} (26... f6 $5 {[%cal Rf6e5]} 27. Nf3 Nc6 $11) 27. h5 {[%emt 0:05:02]} f6 {[%emt 0:05:00] [#] aiming for ...axb3.} 28. Nf3 {[%emt 0:02:16]} (28. Ng6 {looks sharper.} Rc7 29. f5 exf5 30. Bxf5 Bb2 31. Nef4) 28... axb3 {[%emt 0:02:43]} 29. axb3 {[%emt 0:00:05]} Nc6 {[%emt 0:01:52]} 30. g5 {[%emt 0:03:17]} Na5 $2 {[%emt 0:06:22]} (30... Ne7 $11) 31. gxf6 $16 {[%emt 0:02:39]} gxf6 {[%emt 0:00:19]} 32. f5 {[%emt 0:00:09]} Kf7 {[%emt 0:02:48]} (32... e5 $16) 33. fxe6+ $18 {[%emt 0:08:23]} Kxe6 {[%emt 0:00:10]} 34. Nh4 {[%emt 0:00:33] [#] Bf5+ is the strong threat.} Bd7 {[%emt 0:03:17]} 35. Nf5 {[%emt 0:01:58]} ({White should play} 35. Bf5+ $18 Kd6 36. Ra1) 35... Nxb3 $2 {[%emt 0:03:35] This costs Black the game.} (35... Bd6 $2 36. Rg1 $18) (35... Bf8 $16 {is a better defense.}) 36. Nf4+ {[%emt 0:00:09]} (36. Nxh6 Nd2 $16) 36... Kf7 {[%emt 0:00:09]} 37. Nxh6+ {[%emt 0:00:13] Pair of Knights!} Kg7 {[%emt 0:02:40]} 38. Nf5+ {[%emt 0:01:47]} Bxf5 $2 {[%emt 0:00:00]} (38... Kh8 39. Rd1 (39. Nxd5 Bc6 $18) 39... Rc1 40. Rxc1 Bxc1 41. Nxd5 Bxf5 42. Bxf5 Kg7) 39. Bxf5 {[%emt 0:00:04] White is clearly winning.} Rh8 {[%emt 0:04:36]} 40. h6+ {[%emt 0:01:05]} Kf7 {[%emt 0:00:34]} 41. Be6+ {[%emt 0:30:38]} Ke8 {[%emt 0:30:33]} 42. Ng6 {[%emt 0:04:27]} Rh7 {[%emt 0:00:10]} 43. Bg8 {[%emt 0:00:05] Weighted Error Value: White=0.11 (very precise) /Black=0.30} 1-0

[Event "44th Chess Olympiad Women 2022"]
[Site "Chennai"]
[Date "2022.07.30"]
[Round "2.27"]
[White "Koljevic, Nikolina"]
[Black "Avramidou, Anastasia"]
[Result "1/2-1/2"]
[ECO "C00"]
[WhiteElo "2014"]
[BlackElo "2274"]
[Annotator "TA"]
[PlyCount "57"]
[EventDate "2022.07.29"]
[EventType "team-tourn"]
[EventCountry "IND"]
[SourceTitle "playchess.com"]
[Source "ChessBase"]
[SourceQuality "1"]
[WhiteTeam "Montenegro"]
[BlackTeam "Greece"]
[WhiteTeamCountry "MNE"]
[BlackTeamCountry "GRE"]
[TimeControl "40/5400+30:1800+30"]

{[%evp 20,57,33,37,42,8,0,8,18,26,29,26,54,-35,-33,-20,-23,-21,13,14,14,7,105,66,70,0,0,-51,-50,-52,19,0,0,-59,34,0,0,-56,26,0]} 1. e4 {[%emt 0:00:03]} e6 {[%emt 0:00:14]} 2. d3 {[%emt 0:00:20]} d5 {[%emt 0:00:30]} 3. Nd2 {[%emt 0:00:35]} c5 {[%emt 0:02:06]} 4. Ngf3 {[%emt 0:01:12]} Nc6 {[%emt 0:00:51]} 5. g3 {[%emt 0:01:01]} Nf6 {[%emt 0:02:26]} 6. Bg2 {[%emt 0:00:22]} Be7 {[%emt 0:00:32][%cal Bf8e7,Be7f6,Bf6e5][%mdl 32]} 7. O-O {[%emt 0:00:41]} O-O {[%emt 0:01:11]} 8. Re1 {[%emt 0:01:35]} b6 {[%emt 0:08:59]} 9. e5 {[%emt 0:04:01]} Nd7 {[%emt 0:03:37]} 10. Nf1 {[%emt 0:02:03]} f6 {[%emt 0:26:40]} 11. exf6 {[%emt 0:06:09]} Bxf6 {[%emt 0:00:13] C00: French: Unusual White 2nd moves.} 12. Bh3 {[%emt 0:16:26]} (12. Rxe6 Nde5 13. Nxe5 Nxe5 14. Rxf6 Qxf6 15. Bxd5+ Be6 16. Bxe6+ Qxe6 $15) 12... Nde5 {[%emt 0:01:14]} 13. Nxe5 {[%emt 0:00:58]} Bxe5 {[%emt 0:07:21] The position is equal.} 14. c3 {[%emt 0:04:29] [#]} Re8 $146 {[%emt 0:08:44]} ({Predecessor:} 14... Qf6 15. Qe2 Re8 16. Ne3 Qd8 17. Bd2 Bc7 18. Bg2 Bb7 19. f4 Qd7 20. Rad1 Re7 {½-½ (56) Misiuga,A (2221)-Nabelek,M (2086) Moravia 2003}) 15. Ne3 {[%emt 0:07:58]} Bf6 {[%emt 0:05:31]} 16. Qb3 {[%emt 0:16:08]} (16. Bg2 $14) 16... Ne5 $15 {[%emt 0:01:52]} 17. Bg2 {[%emt 0:05:14] Prevents Nf3+.} Nxd3 {[%emt 0:09:42]} 18. Nxd5 {[%emt 0:02:20]} Bb7 {[%emt 0:04:12] [#]} 19. Rxe6 $1 {[%emt 0:09:12]} Rxe6 {[%emt 0:03:32]} 20. Nf4 {[%emt 0:01:26][%mdl 64] Pin} Kh8 {[%emt 0:08:54]} 21. Nxe6 {[%emt 0:02:37]} Qd7 {[%emt 0:00:19] Threatens to win with ...Bxg2.} 22. Nf4 {[%emt 0:07:08]} (22. Bxb7 $14 Qxb7 23. Nf4) 22... Bxg2 {[%emt 0:00:35]} 23. Kxg2 {[%emt 0:00:09]} (23. Nxg2 $11 Rd8 24. Be3) 23... Ne1+ {[%emt 0:01:24]} 24. Kf1 $1 {[%emt 0:00:48]} Nf3 {[%emt 0:00:25]} ({Black should try} 24... c4 $1 $15 25. Qxc4 Nc2) 25. Kg2 {[%emt 0:01:21]} Ne1+ {[%emt 0:00:06]} (25... c4 $11 26. Qxc4 Nh4+ 27. gxh4 Qg4+ 28. Kh1 (28. Kf1 Qd1+ 29. Kg2 Qg4+ 30. Kh1 Qd1+ 31. Kg2 Qg4+ $11) 28... Qf3+ 29. Kg1 Qg4+ 30. Kh1 (30. Kf1 Qd1+ 31. Kg2 Qg4+ 32. Kh1 Qf3+ 33. Kg1 Qg4+ 34. Kh1 $11) 30... Qf3+ 31. Kg1 Qg4+ 32. Kh1 (32. Kf1 Qd1+ 33. Kg2 Qg4+ 34. Kh1 $11)) 26. Kf1 $1 {[%emt 0:02:36]} Nf3 {[%emt 0:00:05]} (26... c4 $1 $15 27. Qxc4 Nc2) 27. Kg2 {[%emt 0:01:42]} Ne1+ {[%emt 0:00:05]} (27... c4 $11 28. Qxc4 Nh4+ 29. gxh4 Qg4+ 30. Kh1 (30. Kf1 Qd1+ 31. Kg2 Qg4+ 32. Kh1 Qd1+ 33. Kg2 Qg4+ $11) 30... Qf3+ 31. Kg1 Qg4+ 32. Kh1 (32. Kf1 Qd1+ 33. Kg2 Qg4+ 34. Kh1 Qf3+ 35. Kg1 Qg4+ 36. Kh1 $11) 32... Qf3+ 33. Kg1 Qg4+ 34. Kh1 (34. Kf1 Qd1+ 35. Kg2 Qg4+ 36. Kh1 $11)) 28. Kf1 $1 {[%emt 0:00:08]} Nf3 {[%emt 0:00:14]} (28... c4 $1 $15 29. Qxc4 Nc2) 29. Kg2 {[%emt 0:00:06] Weighted Error Value: White=0.19 (very precise) /Black=0.26 (precise)} 1/2-1/2

[Event "44th Chess Olympiad Women 2022"]
[Site "Chennai"]
[Date "2022.07.30"]
[Round "2.27"]
[White "Popovic, Mateja"]
[Black "Makka, Ioulia"]
[Result "1/2-1/2"]
[ECO "A46"]
[WhiteElo "1634"]
[BlackElo "1975"]
[Annotator "TA"]
[PlyCount "91"]
[EventDate "2022.07.29"]
[EventType "team-tourn"]
[EventCountry "IND"]
[SourceTitle "playchess.com"]
[Source "ChessBase"]
[SourceQuality "1"]
[WhiteTeam "Montenegro"]
[BlackTeam "Greece"]
[WhiteTeamCountry "MNE"]
[BlackTeamCountry "GRE"]
[TimeControl "40/5400+30:1800+30"]

{[%evp 9,91,25,12,6,5,10,11,8,13,10,23,21,25,-4,0,0,0,0,0,0,12,0,0,0,15,0,3,0,0,-21,-19,-46,-59,-43,-33,-31,-37,-34,-27,-27,-27,-27,-28,-37,-37,-43,-39,-47,-54,-56,-43,-48,-32,-43,-43,-59,-54,-62,-56,-82,-88,-93,-91,-92,0,0,0,0,0,0,0,0,0,0,0,0,0,0,0,0,0,0,0,-7]} 1. d4 {[%emt 0:00:08]} Nf6 {[%emt 0:00:10]} 2. Nf3 {[%emt 0:00:10]} e6 {[%emt 0:00:12]} 3. Bg5 {[%emt 0:00:15]} c5 {[%emt 0:00:29]} 4. c3 {[%emt 0:01:11]} h6 {[%emt 0:03:15]} 5. Bxf6 {[%emt 0:07:40]} Qxf6 {[%emt 0:00:09]} 6. e3 {[%emt 0:00:06] A46: 1 d4 Nf6 2 Nf3 e6: Torre, London and Colle Systems.} b6 {[%emt 0:04:24]} 7. Nbd2 {[%emt 0:00:38]} Bb7 {[%emt 0:01:59] Inhibits Ne4.} 8. Bd3 {[%emt 0:08:44]} Nc6 {[%emt 0:05:41]} 9. O-O {[%emt 0:04:00]} Qd8 {[%emt 0:22:47] [#]} 10. e4 $146 {[%emt 0:05:29]} ({Predecessor:} 10. a3 Be7 11. b4 O-O 12. e4 d6 13. Re1 Qc7 14. Qe2 Rfe8 15. Rac1 Rac8 16. Nf1 {½-½ (56) Borsos,B (2277)-Bozinovic,B (2176) Zalakaros 2018}) 10... cxd4 {[%emt 0:08:33]} 11. Nxd4 {[%emt 0:00:51]} a6 {[%emt 0:04:29]} 12. Re1 {[%emt 0:06:57]} Qc7 {[%emt 0:04:54]} 13. N2f3 {[%emt 0:04:40]} Nxd4 14. Nxd4 Qe5 {[%emt 0:06:51]} 15. Qd2 {[%emt 0:07:10]} Bc5 {[%emt 0:12:44]} 16. Nb3 {[%emt 0:03:10]} Be7 {[%emt 0:01:30]} 17. Qe3 {[%emt 0:02:56]} Qc7 {[%emt 0:02:28]} 18. Rad1 {[%emt 0:09:04]} d6 {[%emt 0:01:55]} 19. e5 {[%emt 0:06:56]} dxe5 {[%emt 0:02:04]} 20. Qxe5 {[%emt 0:00:18]} Qxe5 {[%emt 0:01:10]} 21. Rxe5 {[%emt 0:00:11]} Rd8 {[%emt 0:02:26]} 22. Ree1 {[%emt 0:14:34]} O-O {[%emt 0:01:19]} 23. Be2 {[%emt 0:04:58]} Rxd1 {[%emt 0:04:19]} 24. Rxd1 {[%emt 0:00:11] [#] Hoping for Rd7.} Rd8 {[%emt 0:00:54] Prevents Rd7.} 25. Rxd8+ {[%emt 0:03:02]} Bxd8 $11 {[%emt 0:00:02][%mdl 4096] Endgame KBB-KBN} 26. Nd2 {[%emt 0:00:41]} Kf8 {[%emt 0:01:43]} 27. Kf1 {[%emt 0:02:12]} Ke7 {[%emt 0:00:56]} 28. Bf3 {[%emt 0:01:02]} Bc8 {[%emt 0:01:36]} 29. Ke2 {[%emt 0:00:51]} Bc7 {[%emt 0:02:31]} 30. g3 {[%emt 0:00:55]} f6 {[%emt 0:02:03][%cal Bf7f6,Bf6f5,Bf5f4][%mdl 32]} 31. b3 {[%emt 0:03:41]} g5 {[%emt 0:01:30]} 32. h3 {[%emt 0:01:46]} f5 {[%emt 0:00:33]} 33. Bg2 {[%emt 0:01:21]} e5 {[%emt 0:00:44]} 34. f3 {[%emt 0:00:43]} h5 {[%emt 0:00:26]} 35. Nc4 {[%emt 0:00:24]} f4 {[%emt 0:00:39] Prevents Ne3.} 36. g4 {[%emt 0:00:18] [#]} h4 {[%emt 0:00:25]} ({Better is} 36... e4 $1 $17 {...e3 is the strong threat.} 37. Nd2 hxg4 38. hxg4 exf3+ 39. Bxf3 Ke6) 37. Nd2 {[%emt 0:00:28] The position is equal.} Kf7 {[%emt 0:00:38]} 38. Ne4 {[%emt 0:00:12]} Kg6 $1 {[%emt 0:00:15]} 39. Kd3 {[%emt 0:00:30]} Bb7 {[%emt 0:00:33]} 40. c4 {[%emt 0:00:29]} Bc6 {[%emt 0:00:34]} 41. Nc3 {[%emt 0:30:58]} Bd6 {[%emt 0:08:24]} 42. a4 {[%emt 0:00:00]} a5 {[%emt 0:06:05]} 43. Nd5 {[%emt 0:00:00]} Bc5 {[%emt 0:10:44]} 44. Ke4 {[%emt 0:00:00]} Bd4 {[%emt 0:00:48]} 45. Bf1 {[%emt 0:00:00]} Bb7 {[%emt 0:00:00]} 46. Kd3 {[%emt 0:00:00] Weighted Error Value: White=0.05 (flawless) /Black=0.05 (flawless)} 1/2-1/2

[Event "44th Chess Olympiad Women 2022"]
[Site "Chennai"]
[Date "2022.07.30"]
[Round "2.28"]
[White "Munkhzul, Turmunkh"]
[Black "Oviedo Acosta, Paula"]
[Result "1-0"]
[ECO "B42"]
[WhiteElo "2277"]
[BlackElo "1855"]
[Annotator "TA"]
[PlyCount "93"]
[EventDate "2022.07.29"]
[EventType "team-tourn"]
[EventCountry "IND"]
[SourceTitle "playchess.com"]
[Source "ChessBase"]
[SourceQuality "1"]
[WhiteTeam "Mongolia"]
[BlackTeam "Paraguay"]
[WhiteTeamCountry "MGL"]
[BlackTeamCountry "PAR"]
[TimeControl "40/5400+30:1800+30"]

{[%evp 13,93,43,43,39,27,23,51,37,27,27,13,17,29,24,65,-18,109,96,107,72,127,126,173,114,212,203,206,204,218,175,222,185,216,212,365,369,361,327,408,294,281,222,216,218,217,229,255,169,177,175,267,254,243,-280,0,-356,0,0,54,0,1253,1243,1929,843,840,828,835,758,824,799,718,678,1047,1034,29983,29984,29984,29985,29984,29985,29995,29996]} 1. e4 {[%emt 0:00:02]} c5 {[%emt 0:00:26]} 2. Nf3 {[%emt 0:00:18]} e6 {[%emt 0:00:25]} 3. d4 {[%emt 0:00:27]} cxd4 {[%emt 0:00:13]} 4. Nxd4 {[%emt 0:00:05]} a6 {[%emt 0:00:39]} 5. Bd3 {[%emt 0:00:41]} Bc5 {[%emt 0:00:38]} 6. Nb3 {[%emt 0:00:17]} Ba7 {[%emt 0:00:50]} 7. O-O {[%emt 0:00:29]} Ne7 {[%emt 0:00:41]} 8. Qe2 {[%emt 0:01:31] B42: Sicilian: Kan Variation: 5 Bd3.} O-O {[%emt 0:01:03]} 9. Be3 {[%emt 0:02:33]} Nbc6 {[%emt 0:03:40]} 10. Rd1 {[%emt 0:02:53] [#] White is slightly better.} Nb4 $146 {[%emt 0:03:29]} ({Predecessor:} 10... d6 11. c4 e5 12. Bxa7 Rxa7 13. Qe3 Ra8 14. Nc3 Be6 15. Bf1 Qb8 16. Rd2 a5 17. Rad1 {1-0 (45) Piorun,K (2643)-Keymer,V (2506) Douglas 2019}) 11. Nc3 {[%emt 0:02:20]} b5 {[%emt 0:05:40]} 12. a3 {[%emt 0:04:38][%cal Ba2a3,Ba3a4][%mdl 32]} Nxd3 {[%emt 0:00:17]} 13. Qxd3 {[%emt 0:04:41]} f5 {[%emt 0:05:45]} 14. Nc5 {[%emt 0:04:32]} (14. Bc5 $14) 14... Bxc5 {[%emt 0:10:58]} (14... fxe4 $11 15. N5xe4 (15. Qxe4 d5 $11) 15... d5) 15. Bxc5 $16 {[%emt 0:00:09]} Rf7 {[%emt 0:04:09]} 16. a4 {[%emt 0:03:44] White is more active.} b4 {[%emt 0:10:48]} (16... bxa4 $142 17. Qd6 (17. Nxa4 fxe4 18. Qxe4 d5 $16) (17. Rxa4 Ng6 $16) 17... fxe4) 17. Bxb4 {[%emt 0:02:06]} Rb8 {[%emt 0:06:25]} (17... Ng6 $16 {might work better.}) 18. Ba3 {[%emt 0:06:56]} (18. Bd6 $18 Ra8 19. exf5) 18... f4 {[%emt 0:05:20]} (18... Ng6 $16 19. Bd6 Rxb2) 19. f3 {[%emt 0:07:11]} g5 {[%emt 0:09:52]} 20. b3 {[%emt 0:02:41]} Ng6 {[%emt 0:02:07]} 21. h3 {[%emt 0:05:20]} h5 {[%emt 0:01:10]} (21... Bb7 $142 22. Qd6 Rc8) 22. Bd6 {[%emt 0:04:57]} Rb6 {[%emt 0:03:12]} 23. e5 {[%emt 0:02:02]} Ne7 {[%emt 0:06:37]} (23... Kg7 {was worth a try.} 24. a5 Rc6) 24. Bxe7 $18 {[%emt 0:02:11]} Qxe7 {[%emt 0:00:06]} 25. Ne4 {[%emt 0:00:18]} Kg7 {[%emt 0:01:48]} 26. Qd4 {[%emt 0:06:35]} Rb4 {[%emt 0:02:22]} 27. Qc3 {[%emt 0:03:38]} Rxe4 {[%emt 0:00:29]} 28. fxe4 {[%emt 0:08:34]} Bb7 {[%emt 0:01:10]} 29. Rd4 {[%emt 0:00:40]} g4 {[%emt 0:00:59]} 30. hxg4 {[%emt 0:08:24]} hxg4 {[%emt 0:00:21] Hoping for ...Qh4.} 31. g3 {[%emt 0:00:44] Prevents Qh4.} Qg5 {[%emt 0:00:52]} (31... Kg6 $142) 32. Rf1 {[%emt 0:00:27]} f3 {[%emt 0:00:31]} 33. Rb4 $4 {[%emt 0:03:42][%mdl 8192] [#]} (33. Rd2 $1 $18) 33... Bc6 $2 {[%emt 0:00:16]} (33... Kg6 $1 $19 34. Rxb7 Qh6) 34. Qd4 $2 {[%emt 0:01:43][%mdl 8192] [#]} (34. Kf2 $11 {and White has nothing to worry.} Qh6 35. Qe1 Qh2+ 36. Ke3 Qxc2 37. Qd2 Qc5+ 38. Kd3 Qxe5 39. Rh1 (39. Qc3 Qxc3+ 40. Kxc3 Kf6 $11)) 34... Kg6 $2 {[%emt 0:01:53]} (34... Rf8 $1 $19 {[%cal Rf8h8]} 35. Rb6 Qh5 36. Rxc6 dxc6 37. Qd7+ Rf7) 35. Rb8 $11 {[%emt 0:03:16][%cal Bb4b8,Bb8d8,Bd8d7][%mdl 32] Rh8 is the strong threat.} Kg7 {[%emt 0:04:36] Prevents Rh8.} ({Black should try} 35... Qh5 $11 36. Rg8+ Kh7) 36. b4 {[%emt 0:02:17]} ({Better is} 36. Rd1 $1 $14) 36... Bxe4 $2 {[%emt 0:03:47][%mdl 8192]} 37. Qxe4 $18 {[%emt 0:01:02]} Qh5 {[%emt 0:01:20]} 38. Qe3 {[%emt 0:00:30] Strongly threatening Rf2.} Rf5 {[%emt 0:00:51]} 39. Rd8 {[%emt 0:02:08]} Qh3 {[%emt 0:00:44]} 40. Rxd7+ {[%emt 0:00:25]} Kg6 {[%emt 0:00:16]} 41. Kf2 {[%emt 0:31:58]} (41. Qf2 {leads to mate.} Rh5) 41... Qg2+ {[%emt 0:33:00]} 42. Ke1 {[%emt 0:00:06]} Qxc2 {[%emt 0:00:37]} 43. Rd2 {[%emt 0:01:27]} ({Wrong is} 43. Rh1 $2 f2+ 44. Kf1 Qb1+ 45. Ke2 Qxh1 46. Qxf2 Rxf2+ $19) 43... Qb1+ {[%emt 0:01:00]} 44. Kf2 {[%emt 0:00:12] White mates.} Qxb4 {[%emt 0:00:07]} 45. Rh1 {[%emt 0:00:34]} Rh5 {[%emt 0:00:00]} 46. Qd3+ {[%emt 0:00:00]} Kg5 {[%emt 0:00:00]} 47. Qd8+ {[%emt 0:00:00] Weighted Error Value: White=0.61/Black=0.80} 1-0